fUSD/lending_fUSD_20240606
["ID","MTS","AMOUNT","RATE_DAILY","PERIOD"]
[328629996,1717634968758,-155.0,0.00013998,2]
[328629997,1717634968784,-217.26605951,0.00013998,2]
[328629998,1717634968808,-345.45072342,0.00013998,2]
[328629999,1717634968830,-1390.79889095,0.00013998,2]
[328630000,1717634968853,-290.19206196,0.00013998,2]
[328630001,1717634968876,-901.47598564,0.00013998,2]
[328630002,1717634968896,-1211.27391719,0.00013998,2]
[328630003,1717634968918,-181.46353453,0.00013998,2]
[328630004,1717634968939,-900.72781822,0.00013998,2]
[328630005,1717634968962,-14726.16449977,0.00013998,2]
[328630017,1717635015860,163.16,0.00012571,2]
[328630034,1717635032258,-440.86423025,0.00013718,2]
[328630035,1717635032272,-2169.88967417,0.00013718,2]
[328630036,1717635032281,-710.9458,0.00013899,2]
[328630037,1717635032291,-378.6122916,0.000139,2]
[328630038,1717635032300,-4377.95223421,0.00013998,2]
[328630039,1717635032429,-1115.63952205,0.00013998,2]
[328630040,1717635032439,-155.22687568,0.00013998,2]
[328630041,1717635032449,-536.52210812,0.00013998,2]
[328630042,1717635032459,-376.87795487,0.00013998,2]
[328630043,1717635032472,-165.59462332,0.00013998,2]
[328630044,1717635032482,-252.8485039,0.00013999,2]
[328630045,1717635032491,-603.83202537,0.00013999,2]
[328630046,1717635032502,-670.78694448,0.00013999,2]
[328630047,1717635032513,-1891.95350454,0.00013999,2]
[328630048,1717635032525,-330.79,0.00013999,2]
[328630049,1717635032536,-1170.54854197,0.00013999,2]
[328630050,1717635032545,-4392.97269181,0.00013999,2]
[328630051,1717635032616,-979.38,0.00013999,2]
[328630052,1717635032627,-6368.4721463,0.00013999,2]
[328630069,1717635038314,-392.41411144,0.00013999,2]
[328630070,1717635038326,-760.05397092,0.00013999,2]
[328630071,1717635038338,-134479.95679973,0.00013999,2]
[328630072,1717635038835,-1351.37335133,0.00013999,2]
[328630073,1717635038851,-518.30694867,0.00013999,2]
[328630074,1717635038863,-16916.89840572,0.00013999,2]
[328630075,1717635038874,-250.0,0.00013999,2]
[328630076,1717635038887,-4650.02885915,0.00013999,2]
[328630077,1717635038900,-11240.39953452,0.00013999,2]
[328630078,1717635038912,-686.33538479,0.00013999,2]
[328630079,1717635038923,-2019.18783417,0.00013999,2]
[328630082,1717635042428,-304.184176,0.00013999,2]
[328630083,1717635042468,-2.13026567,0.00013999,2]
[328630098,1717635043388,-0.50103729,0.00013999,2]
[328630099,1717635043665,-71066.96582796,0.00013999,2]
[328630100,1717635043677,-21935.45096719,0.00013999,2]
[328630103,1717635046482,-355.79,0.00013928,2]
[328630104,1717635046691,-55.92,0.00013928,2]
[328630105,1717635046702,-201.43616238,0.00013998,2]
[328630107,1717635046712,-155.0,0.00013998,2]
[328630108,1717635046722,-2857.24178082,0.00013999,2]
[328630109,1717635047004,-1.8e-07,0.00013999,2]
[328630110,1717635047035,-3e-08,0.00013999,2]
[328630113,1717635091848,340.6302143,0.00033593,30]
[328630118,1717635178520,500.0,0.00033593,30]
[328630119,1717635181022,500.0,0.00033593,30]
[328630120,1717635183350,500.0,0.00033593,30]
[328630121,1717635185576,500.0,0.00033593,30]
[328630122,1717635186364,500.0,0.00033593,30]
[328630123,1717635188217,500.0,0.00033593,30]
[328630124,1717635193367,500.0,0.00033593,30]
[328630125,1717635196741,1041.66,0.00033593,30]
[328630126,1717635197032,1041.66,0.00033593,30]
[328630127,1717635197300,1041.66,0.00033593,30]
[328630128,1717635198729,1041.66,0.00033593,30]
[328630129,1717635199037,1041.66,0.00033593,30]
[328630130,1717635199312,1041.66,0.00033593,30]
[328630131,1717635199912,1041.66,0.00033593,30]
[328630132,1717635200188,1041.66,0.00033593,30]
[328630133,1717635200484,1041.66,0.00033593,30]
[328630134,1717635200803,1041.66,0.00033593,30]
[328630135,1717635201106,1041.66,0.00033593,30]
[328630136,1717635201405,1041.66,0.00033593,30]
[328630137,1717635201683,1041.66,0.00033593,30]
[328630138,1717635202279,1041.66,0.00033593,30]
[328630139,1717635202723,1041.66,0.00033593,30]
[328630140,1717635203201,1041.66,0.00033593,30]
[328630141,1717635203505,1041.66,0.00033593,30]
[328630142,1717635203782,1041.66,0.00033593,30]
[328630143,1717635204082,1041.66,0.00033593,30]
[328630144,1717635204340,1041.66,0.00033593,30]
[328630145,1717635204606,1041.66,0.00033593,30]
[328630146,1717635204897,1041.66,0.00033593,30]
[328630147,1717635205197,1041.66,0.00033593,30]
[328630148,1717635205551,1041.78,0.00033593,30]
[328630149,1717635206144,500.0,0.00033593,30]
[328630150,1717635206461,500.0,0.00033593,30]
[328630151,1717635206740,500.0,0.00033593,30]
[328630152,1717635207028,500.0,0.00033593,30]
[328630153,1717635207349,500.0,0.00033593,30]
[328630154,1717635207628,500.0,0.00033593,30]
[328630155,1717635207904,500.0,0.00033593,30]
[328630156,1717635208202,500.0,0.00033593,30]
[328630157,1717635208486,500.0,0.00033593,30]
[328630158,1717635208794,500.0,0.00033593,30]
[328630159,1717635209090,500.0,0.00033593,30]
[328630160,1717635209413,500.0,0.00033593,30]
[328630161,1717635209731,500.0,0.00033593,30]
[328630162,1717635210001,500.0,0.00033593,30]
[328630163,1717635210291,500.0,0.00033593,30]
[328630164,1717635210575,500.0,0.00033593,30]
[328630165,1717635210870,500.0,0.00033593,30]
[328630166,1717635211442,500.0,0.00033593,30]
[328630167,1717635211729,236.28,0.00033593,30]
[328630168,1717635250645,618.49,0.00033592,30]
[328630169,1717635307036,500.0,0.00033592,30]
[328630170,1717635310871,500.0,0.00033592,30]
[328630171,1717635321638,500.0,0.00033592,30]
[328630172,1717635321943,500.0,0.00033592,30]
[328630173,1717635322233,500.0,0.00033592,30]
[328630174,1717635322513,500.0,0.00033592,30]
[328630175,1717635322791,500.0,0.00033592,30]
[328630176,1717635323373,500.0,0.00033592,30]
[328630177,1717635323652,500.0,0.00033592,30]
[328630178,1717635332297,324.08662883,0.00033592,30]
[328630179,1717635355442,500.0,0.00033592,30]
[328630180,1717635355712,500.0,0.00033592,30]
[328630181,1717635356210,416.94245182,0.00033592,30]
[328630182,1717635376917,2568.987,0.00033592,30]
[328630183,1717635418741,155.59502679,0.0003359,30]
[328630184,1717635418938,500.0,0.0003359,30]
[328630185,1717635425313,500.0,0.0003359,30]
[328630186,1717635427123,500.0,0.0003359,30]
[328630187,1717635427396,500.0,0.0003359,30]
[328630188,1717635427507,512.44927159,0.0003359,30]
[328630189,1717635427672,334.95888893,0.0003359,30]
[328630190,1717635463523,172.46,0.0001055,2]
[328630191,1717635518261,-155.0,0.00011555,2]
[328630192,1717635518285,-2192.71782598,0.00011556,2]
[328630193,1717635518306,-976.55,0.00011557,2]
[328630194,1717635518328,-150.0,0.00011897,2]
[328630195,1717635518349,-7765.74,0.00011898,2]
[328630196,1717635518556,-503.22286571,0.00012458,2]
[328630197,1717635518577,-296.73263169,0.00012598,2]
[328630198,1717635518600,-210.0,0.00013087,2]
[328630199,1717635518621,-519.73,0.00013243,2]
[328630200,1717635518642,-625.70433105,0.00013438,2]
[328630201,1717635518662,-250.0,0.00013471,2]
[328630202,1717635518682,-904.0,0.00013471,2]
[328630203,1717635518702,-497.72,0.00013699,2]
[328630204,1717635518721,-2608.85156538,0.00013719,2]
[328630205,1717635518742,-976.55,0.00013821,2]
[328630206,1717635518764,-1000.0,0.00013899,2]
[328630207,1717635518783,-1072.4069,0.00013899,2]
[328630208,1717635518805,-618.60246168,0.000139,2]
[328630209,1717635518826,-166.30963243,0.00013998,2]
[328630210,1717635518849,-10964.64183587,0.00013998,2]
[328630211,1717635518870,-155.39229805,0.00013998,2]
[328630212,1717635518890,-237.8220404,0.00013998,2]
[328630213,1717635518910,-3014.3584163,0.00013998,2]
[328630214,1717635518932,-207.96127058,0.00013998,2]
[328630215,1717635518952,-155.21418795,0.00013998,2]
[328630216,1717635518974,-155.15830389,0.00013998,2]
[328630217,1717635518997,-155.0,0.00013998,2]
[328630218,1717635519017,-155.2380211,0.00013998,2]
[328630219,1717635519038,-364.96719133,0.00013998,2]
[328630220,1717635519061,-158.0964661,0.00013998,2]
[328630221,1717635519082,-155.0,0.00013998,2]
[328630222,1717635519107,-155.0,0.00013998,2]
[328630223,1717635519127,-155.19945437,0.00013998,2]
[328630224,1717635519147,-155.0,0.00013998,2]
[328630225,1717635519168,-624.86771419,0.00013998,2]
[328630226,1717635519189,-155.20485266,0.00013998,2]
[328630227,1717635519209,-658.24107386,0.00013998,2]
[328630228,1717635519230,-190.39267218,0.00013998,2]
[328630229,1717635519250,-296.58359376,0.00013998,2]
[328630230,1717635519270,-623.68338368,0.00013998,2]
[328630231,1717635519290,-3063.72776014,0.00013998,2]
[328630232,1717635519312,-412578.8293573,0.00013999,2]
[328630233,1717635519334,-654.41416,0.00013999,2]
[328630234,1717635519355,-654.41416,0.00013999,2]
[328630235,1717635519376,-654.41417,0.00013999,2]
[328630236,1717635519397,-654.41416,0.00013999,2]
[328630237,1717635519419,-654.41416,0.00013999,2]
[328630238,1717635519440,-654.41417,0.00013999,2]
[328630239,1717635519463,-2796195.49841237,0.00014,2]
[328630240,1717635521994,668.43057368,7.913e-05,2]
[328630241,1717635522023,1883.69837595,7.913e-05,2]
[328630242,1717635534042,2493.85085833,7.913e-05,2]
[328630244,1717635654725,500.0,0.0003359,30]
[328630245,1717635654992,500.0,0.0003359,30]
[328630246,1717635655451,500.0,0.0003359,30]
[328630247,1717635656003,492.2844857,0.0003359,30]
[328630248,1717635768148,777.22,0.0003359,30]
[328630249,1717635768411,777.22,0.0003359,30]
[328630250,1717635768680,777.22,0.0003359,30]
[328630251,1717635768970,777.22,0.0003359,30]
[328630252,1717635769230,777.22,0.0003359,30]
[328630253,1717635769539,777.22,0.0003359,30]
[328630254,1717635770323,777.22,0.0003359,30]
[328630255,1717635770615,777.22,0.0003359,30]
[328630256,1717635770920,777.22,0.0003359,30]
[328630257,1717635771298,777.22,0.0003359,30]
[328630258,1717635771572,777.22,0.0003359,30]
[328630259,1717635772047,777.22,0.0003359,30]
[328630260,1717635772165,777.22,0.0003359,30]
[328630261,1717635772457,777.22,0.0003359,30]
[328630262,1717635772727,777.22,0.0003359,30]
[328630263,1717635772984,777.22,0.0003359,30]
[328630264,1717635773293,777.22,0.0003359,30]
[328630265,1717635774206,777.22,0.0003359,30]
[328630266,1717635774544,777.22,0.0003359,30]
[328630267,1717635774849,777.22,0.0003359,30]
[328630268,1717635775174,777.22,0.0003359,30]
[328630269,1717635775780,777.22,0.0003359,30]
[328630270,1717635776068,777.22,0.0003359,30]
[328630271,1717635776369,777.26,0.0003359,30]
[328630274,1717635939176,-453.0,0.00011362,2]
[328630275,1717635939196,-160.66,0.00011363,2]
[328630276,1717635939216,-878.89,0.00011418,2]
[328630277,1717635939237,-8847.41,0.00013373,2]
[328630278,1717635939257,-653.68990306,0.00013507,2]
[328630285,1717636050100,-250.0,0.00013425,2]
[328630286,1717636050123,-279.25818908,0.00013507,2]
[328630292,1717636155150,-1210.98190786,0.00013507,2]
[328630293,1717636155171,-169.42,0.00013508,2]
[328630294,1717636155192,-1000.0,0.00013549,2]
[328630295,1717636155212,-250.0,0.00013549,2]
[328630296,1717636155233,-878.89,0.00013682,2]
[328630297,1717636155254,-398.17,0.00013699,2]
[328630298,1717636155276,-8063.74,0.00013787,2]
[328630299,1717636155297,-200.0,0.00013847,2]
[328630300,1717636155322,-2855.68059144,0.000139,2]
[328630301,1717636155344,-734.48,0.00013921,2]
[328630302,1717636155366,-2192.47647069,0.00013999,2]
[328630303,1717636155387,-715.00963008,0.00013999,2]
[328630304,1717636155408,-155.0,0.00013999,2]
[328630305,1717636155431,-155.0,0.00013999,2]
[328630306,1717636155452,-150.99,0.00013999,2]
[328630307,1717636155476,-46663.87368854,0.00014,2]
[328630309,1717636166098,-1778.16908223,0.00014,2]
[328630310,1717636173121,-4028.53957711,0.00014,2]
[328630315,1717636231565,-541.27715397,0.000139,2]
[328630316,1717636231575,-167.14571763,0.0001399,2]
[328630317,1717636231585,-43.92744596,0.00014,2]
[328630318,1717636231596,-410.3939274,0.00014,2]
[328630319,1717636231611,-407.44106543,0.00014,2]
[328630320,1717636231622,-731.32,0.00014,2]
[328630321,1717636231635,-568.36,0.00014,2]
[328630322,1717636231657,-836.07057744,0.00014,2]
[328630323,1717636231668,-1295.5852941,0.00014,2]
[328630324,1717636231680,-2579.13024288,0.00014,2]
[328630325,1717636231703,-15274.79999996,0.00014,2]
[328630326,1717636231714,-3289.73579581,0.00014,2]
[328630327,1717636231845,-446.45853724,0.00014,2]
[328630328,1717636231857,-1209.20350361,0.00014,2]
[328630329,1717636231867,-15751.91904767,0.00014,2]
[328630330,1717636231878,-464.34730983,0.00014,2]
[328630331,1717636231966,-4e-08,0.00014,2]
[328630332,1717636231977,-3813.17988348,0.00014,2]
[328630333,1717636231988,-496.29675969,0.00014,2]
[328630345,1717636237489,-494.5387803,0.00014,2]
[328630346,1717636237529,-55924.11018114,0.00014,2]
[328630347,1717636237690,-16449.64747478,0.00014,2]
[328630348,1717636237700,-28133.5316405,0.00014,2]
[328630350,1717636240332,-428.00488885,0.00014,2]
[328630351,1717636240928,-1.373e-05,0.00014,2]
[328630352,1717636241387,-72832.18892149,0.00014,2]
[328630356,1717636241748,1179.68,0.0003359,30]
[328630363,1717636242800,-1221.51665595,0.00014,2]
[328630364,1717636242826,-3182.24119138,0.00014,2]
[328630365,1717636242838,-2991.66271822,0.00014,2]
[328630366,1717636242850,-29104.15818133,0.00014,2]
[328630367,1717636242861,-20914.10415489,0.00014,2]
[328630368,1717636242932,-70961.49022518,0.00014,2]
[328630369,1717636243181,-5995.72271171,0.00014,2]
[328630370,1717636243194,-8032.82651232,0.00014,2]
[328630382,1717636245632,-155.17384802,0.00013999,2]
[328630383,1717636245643,-5098.64869032,0.00014,2]
[328630384,1717636245781,-1100.8999995,0.00014,2]
[328630385,1717636245793,-422.55433788,0.00014,2]
[328630387,1717636303338,958.6,0.0003359,30]
[328630390,1717636373972,500.0,0.0003359,30]
[328630391,1717636374262,500.0,0.0003359,30]
[328630392,1717636374557,500.0,0.0003359,30]
[328630393,1717636374833,500.0,0.0003359,30]
[328630394,1717636375107,500.0,0.0003359,30]
[328630395,1717636375368,500.0,0.0003359,30]
[328630396,1717636375666,500.0,0.0003359,30]
[328630397,1717636375976,500.0,0.0003359,30]
[328630398,1717636376238,500.0,0.0003359,30]
[328630399,1717636376984,500.0,0.0003359,30]
[328630400,1717636377168,500.0,0.0003359,30]
[328630401,1717636377496,500.0,0.0003359,30]
[328630402,1717636377780,500.0,0.0003359,30]
[328630403,1717636378121,500.0,0.0003359,30]
[328630404,1717636378393,500.0,0.0003359,30]
[328630405,1717636378679,500.0,0.0003359,30]
[328630406,1717636379009,500.0,0.0003359,30]
[328630407,1717636379288,500.0,0.0003359,30]
[328630408,1717636379598,236.38004568,0.0003359,30]
[328630409,1717636416005,1041.66,0.0003359,30]
[328630410,1717636416302,1041.66,0.0003359,30]
[328630411,1717636416586,1041.66,0.0003359,30]
[328630412,1717636416863,1041.66,0.0003359,30]
[328630413,1717636417140,1041.66,0.0003359,30]
[328630414,1717636417445,1041.66,0.0003359,30]
[328630415,1717636417702,1041.66,0.0003359,30]
[328630416,1717636418013,1041.66,0.0003359,30]
[328630417,1717636418169,500.0,0.0003359,30]
[328630418,1717636418279,1041.66,0.0003359,30]
[328630419,1717636418471,500.0,0.0003359,30]
[328630420,1717636418563,1041.66,0.0003359,30]
[328630421,1717636418755,500.0,0.0003359,30]
[328630422,1717636418858,1041.66,0.0003359,30]
[328630423,1717636419045,500.0,0.0003359,30]
[328630424,1717636419152,1041.66,0.0003359,30]
[328630425,1717636419472,500.0,0.0003359,30]
[328630426,1717636419504,1041.66,0.0003359,30]
[328630427,1717636419619,500.0,0.0003359,30]
[328630428,1717636419734,1041.66,0.0003359,30]
[328630429,1717636419910,500.0,0.0003359,30]
[328630430,1717636420029,1041.66,0.0003359,30]
[328630431,1717636420220,500.0,0.0003359,30]
[328630432,1717636420301,1041.66,0.0003359,30]
[328630433,1717636420571,1041.66,0.0003359,30]
[328630434,1717636420848,1041.66,0.0003359,30]
[328630435,1717636421128,1041.66,0.0003359,30]
[328630436,1717636421401,1041.66,0.0003359,30]
[328630437,1717636421705,1041.66,0.0003359,30]
[328630438,1717636422015,1041.66,0.0003359,30]
[328630439,1717636422444,1041.66,0.0003359,30]
[328630440,1717636422564,1041.86,0.0003359,30]
[328630441,1717636461012,577.0,0.0003359,30]
[328630442,1717636567472,357.64273673,0.0003359,30]
[328630444,1717636662899,200.0,0.0003359,30]
[328630445,1717636704738,500.0,0.0003359,30]
[328630446,1717636705004,500.0,0.0003359,30]
[328630447,1717636705308,500.0,0.0003359,30]
[328630448,1717636705590,294.28590216,0.0003359,30]
[328630449,1717636740263,2350.469972,0.00010193,2]
[328630450,1717636743904,500.0,0.00033594,30]
[328630451,1717636744244,500.0,0.00033594,30]
[328630452,1717636744565,500.0,0.00033594,30]
[328630453,1717636744862,171.50943664,0.00033594,30]
[328630454,1717636754924,1620.01643354,0.00010144,2]
[328630455,1717636792844,299.56956562,0.00010144,2]
[328630456,1717636806859,297.28819754,0.00010144,2]
[328630462,1717636974403,155.0,0.0001022,2]
[328630463,1717636977556,429.46300983,0.0001022,2]
[328630464,1717636985111,7537.31948195,0.0001022,2]
[328630465,1717636991127,862.13999275,0.0001022,2]
[328630466,1717636996071,718.87490575,0.0001022,2]
[328630467,1717637014765,8415.28893931,0.0001022,2]
[328630468,1717637017732,2368.84886765,0.0001022,2]
[328630469,1717637027216,155.0,0.0001022,2]
[328630470,1717637027338,1296.0,0.0001022,2]
[328630471,1717637041925,150.0,0.0001022,2]
[328630472,1717637116626,249.6491194,0.00033594,30]
[328630473,1717637136254,500.0,0.00033594,30]
[328630474,1717637136513,500.0,0.00033594,30]
[328630475,1717637136813,500.0,0.00033594,30]
[328630476,1717637137105,500.0,0.00033594,30]
[328630477,1717637137381,500.0,0.00033594,30]
[328630478,1717637137663,500.0,0.00033594,30]
[328630479,1717637137926,500.0,0.00033594,30]
[328630480,1717637138237,500.0,0.00033594,30]
[328630481,1717637138517,501.42889364,0.00033594,30]
[328630482,1717637162994,155.27361662,0.00010134,2]
[328630484,1717637257620,850.67,0.00010123,2]
[328630488,1717637345142,-168.38585261,0.00010222,2]
[328630489,1717637345164,-2368.84886765,0.00010222,2]
[328630490,1717637345188,-7537.31948195,0.00010223,2]
[328630491,1717637345212,-163.14472256,0.00010224,2]
[328630492,1717637345236,-1276.26411755,0.00010225,2]
[328630493,1717637345258,-150.0,0.00010229,2]
[328630494,1717637345281,-821.24,0.00010235,2]
[328630495,1717637345305,-1598.93,0.00010235,2]
[328630496,1717637345327,-12274.92595768,0.00010235,2]
[328630497,1717637346181,-1327.64038147,0.00010221,2]
[328630498,1717637350128,-1007.25556964,0.00010221,2]
[328630499,1717637350148,-23184.4339329,0.00010235,2]
[328630500,1717637350169,-5367.81,0.00010236,4]
[328630501,1717637350189,-150.99,0.0001057,2]
[328630502,1717637350210,-3284.33,0.00012064,2]
[328630503,1717637350230,-1797.11,0.0001208,2]
[328630504,1717637350251,-250.0,0.00012106,2]
[328630505,1717637350271,-1000.0,0.00012137,2]
[328630506,1717637350291,-250.0,0.00012141,2]
[328630507,1717637350311,-150.0,0.00012156,2]
[328630508,1717637350331,-23890.0,0.00012215,2]
[328630509,1717637350352,-200.0,0.00012344,2]
[328630510,1717637350372,-8435.36,0.00012344,2]
[328630511,1717637350391,-499.99,0.00012344,2]
[328630512,1717637350412,-850.67,0.00012387,2]
[328630513,1717637350431,-2506.75749746,0.000124,2]
[328630514,1717637354124,-8461.80588401,0.000124,2]
[328630515,1717637354146,-330.73,0.00012456,2]
[328630516,1717637354170,-330.73,0.0001249,2]
[328630517,1717637354191,-330.73,0.00012524,2]
[328630518,1717637354213,-330.73,0.00012558,2]
[328630519,1717637354233,-330.73,0.00012593,2]
[328630520,1717637356448,1600.85822916,0.00012399,2]
[328630523,1717637368107,-330.73,0.00012627,2]
[328630524,1717637368131,-330.73,0.00012661,2]
[328630525,1717637368152,-330.73,0.00012695,2]
[328630526,1717637368174,-330.73,0.00012729,2]
[328630527,1717637368200,-330.73,0.00012763,2]
[328630528,1717637368221,-330.73,0.00012798,2]
[328630529,1717637368244,-330.73,0.00012832,2]
[328630530,1717637368267,-330.73,0.00012866,2]
[328630531,1717637368290,-330.73,0.000129,2]
[328630532,1717637368312,-330.73,0.00012934,2]
[328630533,1717637368333,-330.73,0.00012968,2]
[328630534,1717637368353,-330.73,0.00013003,2]
[328630535,1717637368377,-330.73,0.00013037,2]
[328630536,1717637368398,-330.73,0.00013071,2]
[328630537,1717637368418,-330.73,0.00013105,2]
[328630538,1717637368438,-853.06016096,0.00013121,2]
[328630539,1717637372119,-253.39665521,0.00013121,2]
[328630540,1717637372152,-150.0,0.00013121,2]
[328630541,1717637410263,440.3569,0.00033593,30]
[328630542,1717637410701,187.44159765,0.00033593,30]
[328630543,1717637420692,157.5330626,0.00033593,30]
[328630544,1717637422824,291.56919803,0.00033593,30]
[328630545,1717637425474,154.79447478,0.00033593,30]
[328630546,1717637427108,500.0,0.00033593,30]
[328630547,1717637427401,500.0,0.00033593,30]
[328630548,1717637427663,500.0,0.00033593,30]
[328630549,1717637427764,499.47479271,0.00033593,30]
[328630550,1717637427935,499.45650902,0.00033593,30]
[328630551,1717637430418,246.59511563,0.00033593,30]
[328630562,1717637431874,-315.0,0.00013121,2]
[328630564,1717637431886,-1433.51391152,0.00013121,2]
[328630565,1717637431898,-39.60947231,0.00013121,2]
[328630566,1717637431907,-18722.47993017,0.00013121,2]
[328630567,1717637431918,-1420.97727954,0.00013121,2]
[328630568,1717637431930,-297.182565,0.00013121,2]
[328630569,1717637431942,-584.31,0.00013121,2]
[328630570,1717637432041,-17910.25417852,0.00013121,2]
[328630571,1717637432053,-10235.90437711,0.00013121,2]
[328630572,1717637432065,-2719.05049637,0.00013121,2]
[328630573,1717637432076,-78699.10507935,0.00013121,2]
[328630574,1717637432088,-305.27910751,0.00013121,2]
[328630575,1717637432099,-474.46635641,0.00013121,2]
[328630576,1717637432111,-521.97670531,0.00013121,2]
[328630577,1717637432121,-409.96673303,0.00013121,2]
[328630578,1717637432136,-2360.35387545,0.00013121,2]
[328630579,1717637432148,-16624.24346314,0.00013121,2]
[328630580,1717637432160,-1271.46687446,0.00013121,2]
[328630581,1717637432217,-12611.04820383,0.00013121,2]
[328630582,1717637432228,-7800.69533894,0.00013121,2]
[328630583,1717637432239,-422.76314946,0.00013121,2]
[328630584,1717637432250,-2478.29101073,0.00013121,2]
[328630585,1717637432263,-556.70320369,0.00013121,2]
[328630586,1717637432273,-728.32779425,0.00013121,2]
[328630587,1717637432285,-560.2023371,0.00013121,2]
[328630588,1717637432296,-569.99999994,0.00013121,2]
[328630589,1717637432308,-351.899999,0.00013121,2]
[328630590,1717637432319,-351.68374011,0.00013121,2]
[328630609,1717637436965,165.09248717,0.00033593,30]
[328630610,1717637437831,-418.94994457,0.00013121,2]
[328630612,1717637438861,-5406.94968732,0.00013121,2]
[328630613,1717637438872,-1236.89030779,0.00013121,2]
[328630614,1717637439115,-1392.37172164,0.00013121,2]
[328630615,1717637439127,-1651.94935281,0.00013121,2]
[328630616,1717637439143,-618.67035688,0.00013121,2]
[328630617,1717637439155,-2145.76887824,0.00013121,2]
[328630618,1717637439167,-494.72760592,0.00013121,2]
[328630619,1717637439179,-746.89027862,0.00013121,2]
[328630620,1717637439190,-675.13887568,0.00013121,2]
[328630621,1717637439202,-16318.24771686,0.00013121,2]
[328630622,1717637439217,-785.23100942,0.00013121,2]
[328630623,1717637439229,-1637.09935816,0.00013121,2]
[328630624,1717637439325,-2275.01159589,0.00013121,2]
[328630627,1717637439336,-2072.10473281,0.00013121,2]
[328630637,1717637440798,-667.35421737,0.00013121,2]
[328630638,1717637440810,-8834.29170271,0.00013121,2]
[328630639,1717637440822,-796.88884655,0.00013121,2]
[328630640,1717637440834,-2257.23419291,0.00013121,2]
[328630641,1717637440846,-6224.51580817,0.00013121,2]
[328630642,1717637440858,-925.04565081,0.00013121,2]
[328630643,1717637440869,-681.43362743,0.00013121,2]
[328630644,1717637440881,-51450.38497916,0.00013121,2]
[328630645,1717637440893,-4423.79925551,0.00013121,2]
[328630646,1717637441017,-3885.68981645,0.00013121,2]
[328630647,1717637441028,-690.46066861,0.00013121,2]
[328630648,1717637441758,578.71679307,0.00033593,30]
[328630649,1717637441884,-105555.57891009,0.00013121,2]
[328630654,1717637442995,-89320.75385318,0.00013121,2]
[328630657,1717637443200,-368.59145831,0.00013121,2]
[328630658,1717637443211,-1932.25,0.00013121,2]
[328630659,1717637443223,-1953.5013915,0.00013121,2]
[328630660,1717637443426,-1386.63231897,0.00013121,2]
[328630661,1717637443437,-3434.80500078,0.00013121,2]
[328630662,1717637443449,-47027.59652413,0.00013121,2]
[328630663,1717637443458,-167.66,0.00013137,2]
[328630664,1717637443468,-171.9,0.00013435,2]
[328630665,1717637443477,-1000.0,0.00013654,2]
[328630666,1717637443486,-318.53,0.00013699,2]
[328630667,1717637443495,-1269.53,0.00013699,2]
[328630668,1717637443505,-2751.0,0.00013699,2]
[328630669,1717637443514,-3000.0,0.0001386,2]
[328630670,1717637443524,-200.0,0.00013879,2]
[328630671,1717637443533,-500.0,0.00013887,2]
[328630672,1717637443542,-1000.0,0.00013888,2]
[328630673,1717637443551,-500.0,0.00013888,2]
[328630674,1717637443560,-200.0,0.00013888,2]
[328630675,1717637443569,-1014.1185,0.00013898,2]
[328630676,1717637443578,-5688.5377,0.00013898,2]